bitfinex-derivatives/quotes_SOLF0:USTF0_20250819
["timestamp","ask_amount","ask_price","bid_price","bid_amount"]
[1755602289523,2.96,181.59,181.54,5.5067]
[1755602289817,2.96,181.64,181.51,3.63697469]
[1755602290023,7.31502863,181.63,181.51,3.63697469]
[1755602290225,2.96,181.61,181.52,5.5071]
[1755602290424,2.96,181.59,181.52,5.5071]
[1755602290815,2.96,181.59,181.53,5.507]
[1755602291021,2.96,181.64,181.53,5.507]
[1755602291220,2.96,181.62,181.53,5.507]
[1755602291412,7.31643655,181.61,181.53,5.507]
[1755602291622,4.53901043,181.6,181.53,5.507]
[1755602291820,4.53901043,181.59,181.53,5.507]
[1755602292021,2.96,181.62,181.53,5.507]
[1755602292217,7.32633849,181.61,181.53,5.507]
[1755602292417,4.54832352,181.6,181.53,5.507]
[1755602292614,4.54832352,181.59,181.53,5.507]
[1755602292817,2.96,181.62,181.53,5.507]
[1755602293021,4.54817071,181.61,181.53,5.507]
[1755602293222,7.50817071,181.6,181.51,3.63697469]
[1755602293520,4.54817071,181.59,181.51,3.63697469]
[1755602294427,4.54817071,181.59,181.54,3.63697469]
[1755602294620,2.96,181.63,181.54,3.63697469]
[1755602294821,4.54782709,181.62,181.54,3.63697469]
[1755602295019,7.50782709,181.61,181.54,3.63697469]
[1755602295228,4.54782709,181.6,181.55,5.5063]
[1755602295429,2.96,181.59,181.54,3.63697469]
[1755602296319,2.96,181.59,181.54,9.14357469]
[1755602299432,2.96,181.62,181.55,5.5061]
[1755602299732,2.96,181.62,181.57,3.63697469]
[1755602299927,2.96,181.62,181.57,9.14267469]
[1755602300321,2.96,181.64,181.57,3.63697469]
[1755602301031,2.96,181.64,181.58,5.5054]
[1755602301230,2.96,181.64,181.57,3.63697469]
[1755602301633,2.96,181.64,181.58,5.5054]
[1755602301832,2.96,181.64,181.57,3.63697469]
[1755602302232,2.96,181.64,181.57,9.14267469]
[1755602304033,370.12,181.71,181.54,6.18039828]
[1755602304235,2.95,181.67,181.6,3.63697469]
[1755602314045,2.95,181.67,181.6,9.14177469]
[1755602315456,2.95,181.67,181.6,3.63697469]
[1755602317456,2.95,181.67,181.6,9.14167469]
[1755602317660,134.0,181.72,181.63,3.63697469]
[1755602317850,2.95,181.71,181.63,3.63697469]
[1755602318049,2.95,181.71,181.64,5.5036]
[1755602321559,2.95,181.76,181.66,3.63697469]
[1755602323259,2.95,181.76,181.68,5.5024]
[1755602323660,2.95,181.76,181.66,3.63697469]
[1755602323859,2.95,181.76,181.67,5.5026]
[1755602324059,2.95,181.76,181.66,3.63697469]
[1755602324455,2.95,181.76,181.66,9.13997469]
[1755602325560,2.95,181.76,181.67,5.5027]
[1755602325861,2.95,181.76,181.66,3.63697469]
[1755602328555,2.95,181.76,181.63,3.63697469]
[1755602328759,2.95,181.74,181.63,3.63697469]
[1755602330165,2.95,181.72,181.63,3.63697469]
[1755602332267,2.95,181.72,181.64,5.5034]
[1755602332962,2.95,181.72,181.63,9.14087469]
[1755602333161,2.95,181.72,181.63,3.63697469]
[1755602334468,2.95,181.72,181.63,9.14087469]
[1755602334668,2.95,181.72,181.63,3.63697469]
[1755602338069,4.50514617,181.71,181.63,3.63697469]
[1755602338270,3.02,181.7,181.6,9.14167469]
[1755602338462,3.02,181.7,181.6,3.63697469]
[1755602338668,3.02,181.68,181.6,3.63697469]
[1755602340373,3.02,181.68,181.58,369.92]
[1755602340566,4.51002217,181.67,181.58,369.92]
[1755602340768,3.02,181.66,181.57,3.63697469]
[1755602341776,4.51141883,181.65,181.54,137.59697469]
[1755602341975,7.53141883,181.64,181.51,3.63697469]
[1755602342277,3.02,181.62,181.51,3.63697469]
[1755602342979,3.02,181.62,181.52,5.5073]
[1755602344273,3.02,181.62,181.51,9.14447469]
[1755602344574,3.02,181.62,181.51,3.63697469]
[1755602345978,4.5114943,181.61,181.51,3.63697469]
[1755602346181,3.02,181.6,181.51,3.63697469]
[1755602346687,3.02,181.6,181.49,134.02]
[1755602347380,3.02,181.58,181.49,134.02]
[1755602349979,3.02,181.57,181.45,3.63697469]
[1755602361088,3.02,181.57,181.47,5.5088]
[1755602361684,3.63697469,181.61,181.48,9.14547469]
[1755602361896,3.02,181.6,181.48,3.63697469]
[1755602362094,3.02,181.63,181.51,3.63697469]
[1755602363097,3.02,181.63,181.51,9.14457469]
[1755602363295,3.02,181.63,181.51,3.63697469]
[1755602364093,3.02,181.63,181.52,5.5072]
[1755602365995,3.02,181.63,181.53,5.507]
[1755602366196,3.02,181.63,181.54,3.63697469]
[1755602371207,3.02,181.63,181.52,3.63697469]
[1755602375510,2.89,181.61,181.52,3.63697469]
[1755602375709,2.89,181.61,181.49,3.63697469]
[1755602376412,2.89,181.59,181.49,3.63697469]
[1755602377110,2.89,181.59,181.49,9.14507469]
[1755602386018,2.89,181.59,181.49,3.63697469]
[1755602386216,2.89,181.61,181.52,3.63697469]
[1755602386720,2.89,181.61,181.52,9.14407469]
[1755602388424,2.89,181.61,181.52,3.63697469]
[1755602389517,2.89,181.61,181.52,9.14427469]
[1755602389718,2.89,181.61,181.52,3.63697469]
[1755602390519,2.89,181.61,181.53,5.5069]
[1755602391023,2.89,181.61,181.52,9.14407469]
[1755602391922,2.89,181.61,181.52,3.63697469]
[1755602392419,3.05,181.59,181.52,3.63697469]
[1755602393518,3.05,181.63,181.52,3.63697469]
[1755602393725,4.53290054,181.62,181.55,3.63697469]
[1755602393918,3.05,181.63,181.55,3.63697469]
[1755602394120,3.05,181.63,181.58,3.63697469]
[1755602396323,3.05,181.66,181.58,3.63697469]
[1755602400734,3.05,181.66,181.53,6.18039828]
[1755602400935,3.05,181.64,181.54,3.63697469]
[1755602401133,3.05,181.64,181.54,9.14357469]
[1755602402430,3.05,181.64,181.55,5.5064]
[1755602405232,4.53487084,181.63,181.55,5.5064]
[1755602405440,3.05,181.62,181.55,5.5064]
[1755602407136,3.05,181.62,181.54,9.14357469]
[1755602411842,3.05,181.62,181.55,5.5064]
[1755602412343,3.05,181.62,181.57,3.63697469]
[1755602413544,3.05,181.69,181.57,3.63697469]
[1755602413741,3.05,181.67,181.57,3.63697469]
[1755602413940,3.05,181.65,181.57,3.63697469]
[1755602414141,3.05,181.65,181.58,5.5053]
[1755602414747,3.05,181.65,181.57,9.14267469]
[1755602414948,3.05,181.63,181.57,9.14267469]
[1755602415646,3.05,181.63,181.58,5.5054]
[1755602416147,3.05,181.62,181.58,5.5054]
[1755602418445,3.05,181.69,181.57,3.63697469]
[1755602418640,4.59869461,181.68,181.57,3.63697469]
[1755602418841,7.64869461,181.67,181.6,5.5047]
[1755602419037,4.59869461,181.66,181.6,5.5047]
[1755602419338,3.05,181.67,181.6,5.5047]
[1755602421449,3.05,181.67,181.61,5.5045]
[1755602421648,3.05,181.67,181.6,3.63697469]
[1755602422549,2.92,181.7,181.6,3.63697469]
[1755602422748,2.92,181.7,181.56,9.81737297]
[1755602422749,2.92,181.7,181.63,3.63697469]
[1755602423846,2.92,181.7,181.64,5.5034]
[1755602426951,2.92,181.7,181.65,5.5033]
[1755602427138,2.92,181.7,181.63,3.63697469]
[1755602427547,2.92,181.7,181.66,3.63697469]
[1755602428052,2.92,181.7,181.66,9.13977469]
[1755602428552,2.92,181.7,181.66,3.63697469]
[1755602428856,2.92,181.75,181.66,3.63697469]
[1755602429145,2.92,181.73,181.66,3.63697469]
[1755602433647,2.92,181.73,181.66,9.13997469]
[1755602433854,2.92,181.73,181.66,3.63697469]
[1755602434242,2.92,181.73,181.6,68.18039828]
[1755602434243,2.92,181.73,181.69,3.63697469]
[1755602435157,2.92,181.73,181.69,9.13897469]
[1755602436957,2.92,181.78,181.7,5.5017]
[1755602437159,2.92,181.78,181.69,3.63697469]
[1755602437755,2.92,181.78,181.7,5.5017]
[1755602438348,2.92,181.78,181.69,9.13897469]
[1755602438748,2.92,181.78,181.69,3.63697469]
[1755602438955,2.92,181.84,181.72,3.63697469]
[1755602439150,507.39697469,181.86,181.72,3.63697469]
[1755602439151,2.92,181.82,181.72,3.63697469]
[1755602439354,2.92,181.8,181.72,3.63697469]
[1755602441459,2.92,181.8,181.72,9.13817469]
[1755602442868,2.92,181.8,181.72,3.63697469]
[1755602443760,2.92,181.8,181.73,5.5007]
[1755602444962,2.92,181.8,181.74,5.5006]
[1755602445569,2.92,181.8,181.73,5.5008]
[1755602446562,2.92,181.8,181.74,5.5006]
[1755602448162,2.92,181.8,181.73,5.5008]
[1755602451275,2.92,181.8,181.72,3.63697469]
[1755602451473,2.92,181.8,181.69,3.63697469]
[1755602451674,2.92,181.8,181.7,5.5018]
[1755602451871,2.92,181.8,181.69,3.63697469]
[1755602453373,2.92,181.8,181.7,5.5018]
[1755602453779,2.92,181.8,181.69,3.63697469]
[1755602453979,2.92,181.8,181.69,9.13897469]
[1755602454382,2.92,181.8,181.69,3.63697469]
[1755602454570,2.92,181.8,181.7,5.5016]
[1755602454771,2.92,181.8,181.69,3.63697469]
[1755602454979,2.92,181.8,181.71,5.5015]
[1755602455483,2.92,181.8,181.72,5.5012]
[1755602457777,2.92,181.8,181.72,9.13817469]
[1755602459782,2.92,181.8,181.73,5.5009]
[1755602460174,2.92,181.8,181.72,3.63697469]
[1755602460378,4.5530682,181.79,181.66,3.63697469]
[1755602460681,2.86,181.77,181.66,3.63697469]
[1755602460883,2.86,181.77,181.7,5.5018]
[1755602461085,2.86,181.77,181.66,3.63697469]
[1755602461483,2.86,181.77,181.68,5.5023]
[1755602461788,2.86,181.77,181.66,3.63697469]
[1755602461980,2.86,181.77,181.7,5.5017]
[1755602462888,2.86,181.77,181.66,3.63697469]
[1755602462889,2.86,181.77,181.69,5.502]
[1755602464280,4.56159743,181.76,181.69,5.502]
[1755602464584,2.86,181.77,181.69,5.502]
[1755602464780,2.86,181.75,181.69,5.502]
[1755602466186,2.86,181.75,181.68,5.5023]
[1755602468789,2.86,181.8,181.69,3.63697469]
[1755602469094,2.86,181.78,181.69,3.63697469]
[1755602470484,2.86,181.78,181.7,5.5016]
[1755602470890,2.86,181.76,181.68,5.5022]
[1755602471783,2.86,181.76,181.67,3.63697469]
[1755602472288,2.86,181.76,181.71,5.5015]
[1755602473384,2.86,181.79,181.72,5.5012]
[1755602473685,2.86,181.77,181.7,3.63697469]
[1755602474492,2.86,181.77,181.71,5.5014]
[1755602478999,2.86,181.77,181.7,3.63697469]
[1755602479000,2.86,181.77,181.7,9.13867469]
[1755602480300,2.86,181.76,181.72,2.32432755]
[1755602480602,4.5808111,181.75,181.68,2.32432755]
[1755602480803,4.5808111,181.74,181.68,2.32432755]
[1755602480999,4.58138595,181.73,181.68,2.32432755]
[1755602481199,2.86,181.7,181.68,2.32432755]
[1755602481600,2.86,181.72,181.68,2.32432755]
[1755602481798,2.86,181.77,181.7,2.32432755]
[1755602481997,4.58085382,181.76,181.7,2.32432755]
[1755602482193,7.44085382,181.75,181.7,2.32432755]
[1755602482397,3.04,181.78,181.7,2.32432755]
[1755602482600,4.5807806,181.77,181.7,2.32432755]
[1755602482799,7.6207806,181.76,181.7,2.32432755]
[1755602483001,3.04,181.73,181.7,2.32432755]
[1755602483204,3.04,181.72,181.7,2.32432755]
[1755602483603,2.32432755,181.77,181.7,2.32432755]
[1755602483799,4.58079854,181.76,181.68,2.32432755]
[1755602484101,2.32432755,181.77,181.68,2.32432755]
[1755602484102,3.04,181.74,181.68,2.32432755]
[1755602484309,3.04,181.74,181.66,5.5028]
[1755602484602,3.04,181.74,181.68,2.32432755]
[1755602486503,3.04,181.74,181.65,5.5032]
[1755602486504,3.04,181.74,181.65,9.13687768]
[1755602486704,3.04,181.74,181.66,5.503]
[1755602486906,3.04,181.74,181.65,3.63367768]
[1755602488004,3.04,181.74,181.67,5.5025]
[1755602488902,3.04,181.74,181.68,5.5024]
[1755602489809,3.04,181.78,181.68,3.63367768]
[1755602490105,3.04,181.76,181.68,3.63367768]
[1755602490301,3.04,181.74,181.68,3.63367768]
[1755602490497,3.04,181.74,181.68,9.13597768]
[1755602490806,3.04,181.74,181.68,3.63367768]
[1755602491002,3.04,181.74,181.65,3.63367768]
[1755602491411,3.04,181.74,181.66,5.5028]
[1755602491604,3.04,181.74,181.65,3.63367768]
[1755602492006,3.04,181.74,181.66,5.503]
[1755602492497,4.58156146,181.73,181.67,5.5027]
[1755602492700,3.04,181.74,181.67,5.5027]
[1755602492901,4.58156146,181.73,181.67,5.5027]
[1755602493102,3.04,181.74,181.68,5.5024]
[1755602493306,3.04,181.76,181.68,5.5024]
[1755602493508,4.58200337,181.75,181.68,3.63367768]
[1755602493703,4.58200337,181.74,181.69,5.5019]
[1755602493908,3.04,181.76,181.69,5.5019]
[1755602494104,4.58190811,181.75,181.69,5.5019]
[1755602494306,7.62190811,181.74,181.69,5.5019]
[1755602494501,3.04,181.74,181.69,5.5019]
[1755602496810,3.04,181.74,181.7,5.5017]
[1755602497009,3.04,181.79,181.7,5.5017]
[1755602497204,7.34142098,181.78,181.7,5.5017]
[1755602497405,4.58417687,181.77,181.7,5.5017]
[1755602497609,4.58417687,181.76,181.7,5.5017]
[1755602497806,4.58417687,181.75,181.7,5.5017]
[1755602498010,3.04,181.77,181.7,5.5017]
[1755602498308,4.58386698,181.76,181.7,5.5017]
[1755602498506,4.58386698,181.75,181.74,3.63367768]
[1755602498706,3.04,181.8,181.74,3.63367768]
[1755602498914,3.04,181.78,181.74,3.63367768]
[1755602499312,376.01712799,181.86,181.74,3.63367768]
[1755602499611,3.04,181.77,181.74,3.63367768]
[1755602502609,3.04,181.84,181.74,3.63367768]
[1755602502816,3.04,181.82,181.74,3.63367768]
[1755602503408,3.04,181.82,181.74,9.13407768]
[1755602507022,3.04,181.82,181.74,3.63367768]
[1755602512225,136.94,181.85,181.77,3.63367768]
[1755602513023,133.9,181.85,181.77,9.13337768]
[1755602513322,3.15,181.84,181.77,9.13337768]
[1755602513617,3.15,181.84,181.78,5.4994]
[1755602514110,6.15712799,181.9,181.77,3.63367768]
[1755602514315,3.15,181.88,181.8,3.63367768]
[1755602514515,4.33924816,181.87,181.8,3.63367768]
[1755602514814,3.15,181.88,181.8,3.63367768]
[1755602515314,3.15,181.88,181.8,9.13227768]
[1755602516421,3.15,181.88,181.8,3.63367768]
[1755602516923,3.15,181.88,181.8,9.13227768]
[1755602517318,3.15,181.88,181.8,3.63367768]
[1755602517525,3.15,181.88,181.83,3.63367768]
[1755602518625,3.15,181.92,181.83,3.63367768]
[1755602518823,4.33163026,181.91,181.83,3.63367768]
[1755602519022,3.15,181.92,181.83,3.63367768]
[1755602519222,3.15,181.9,181.83,3.63367768]
[1755602520429,3.15,181.9,181.8,3.63367768]
[1755602520626,3.15,181.9,181.8,9.13237768]
[1755602521230,3.15,181.9,181.81,5.4985]
[1755602521443,3.15,181.9,181.8,3.63367768]
[1755602522628,3.15,181.9,181.82,5.498]
[1755602523331,3.15,181.9,181.83,3.63367768]
[1755602524935,3.15,181.9,181.84,5.4974]
[1755602525632,3.15,181.9,181.83,9.13147768]
[1755602526232,3.15,181.9,181.84,5.4976]
[1755602527435,3.15,181.93,181.85,5.4973]
[1755602528033,3.15,181.93,181.84,5.4975]
[1755602529933,3.15,181.93,181.83,9.13137768]
[1755602532335,3.15,181.93,181.8,5.4987]
[1755602532635,3.15,181.92,181.8,3.63367768]
[1755602533137,3.15,181.92,181.81,5.4983]
[1755602533337,3.15,181.92,181.8,3.63367768]
[1755602533738,3.15,181.92,181.8,9.13227768]
[1755602534130,3.15,181.92,181.8,3.63367768]
[1755602534431,3.15,181.92,181.81,5.4985]
[1755602537435,4.26920449,181.91,181.81,5.4985]
[1755602537641,3.15,181.9,181.81,5.4985]
[1755602538038,3.15,181.9,181.82,5.4982]
[1755602538946,3.15,181.9,181.8,9.13217768]
[1755602539243,3.15,181.9,181.8,3.63367768]
[1755602539444,3.15,181.9,181.81,5.4985]
[1755602540345,3.15,181.9,181.8,9.13237768]
[1755602540842,3.15,181.9,181.8,3.63367768]
[1755602543540,3.15,181.9,181.82,5.498]
[1755602544442,3.15,181.9,181.8,3.63367768]
[1755602544636,3.15,181.9,181.81,5.4985]
[1755602546042,3.15,181.9,181.8,9.13237768]
[1755602546238,3.15,181.9,181.8,5.4987]
[1755602546438,3.15,181.9,181.84,2.32139516]
[1755602553249,4.2855421,181.89,181.84,2.32139516]
[1755602553548,2.98,181.87,181.84,2.32139516]
[1755602554252,2.98,181.93,181.84,2.32139516]
[1755602554452,2.98,181.91,181.84,2.32139516]
[1755602554752,2.98,181.89,181.84,2.32139516]
[1755602554953,2.98,181.88,181.84,2.32139516]
[1755602558051,2.32139516,181.92,181.84,2.32139516]
[1755602558052,2.98,181.87,181.84,2.32139516]
[1755602559253,2.98,181.91,181.84,2.32139516]
[1755602559444,7.0442606,181.9,181.84,2.32139516]
[1755602559649,7.27378026,181.89,181.84,2.32139516]
[1755602559947,4.29378026,181.88,181.84,2.32139516]
[1755602560149,2.98,181.9,181.84,2.32139516]
[1755602560351,10.02431239,181.89,181.84,2.32139516]
[1755602560553,4.29378026,181.88,181.84,2.32139516]
[1755602560945,2.98,181.88,181.84,2.32139516]
[1755602561455,2.98,181.91,181.84,2.32139516]
[1755602561653,7.04543698,181.9,181.84,2.32139516]
[1755602561858,7.04543698,181.89,181.84,2.32139516]
[1755602562053,2.32139516,181.93,181.86,2.32139516]
[1755602562250,2.98,181.9,181.86,2.32139516]
[1755602562449,4.29426849,181.89,181.86,2.32139516]
[1755602563655,4.69308168,181.88,181.86,2.32139516]
[1755602563859,4.69308168,181.87,181.86,2.32139516]
[1755602564660,2.32139516,181.94,181.86,2.32139516]
[1755602564847,2.32139516,181.94,181.84,5.4975]
[1755602564848,2.98,181.92,181.88,2.32139516]
[1755602565156,4.34156589,181.91,181.88,2.32139516]
[1755602565355,2.98,181.92,181.88,2.32139516]
[1755602565557,4.34041315,181.91,181.88,2.32139516]
[1755602565756,2.98,181.92,181.88,2.32139516]
[1755602565958,4.34041315,181.91,181.88,2.32139516]
[1755602566158,2.98,181.92,181.88,2.32139516]
[1755602566352,2.98,181.92,181.9,2.32139516]
[1755602567462,2.98,181.97,181.9,2.32139516]
[1755602567664,7.09436237,181.96,181.9,2.32139516]
[1755602567857,2.98,181.94,181.9,2.32139516]
[1755602569361,16.51,182.08,181.9,2.32139516]
[1755602569362,6.16405774,182.11,182.03,5.4919]
[1755602569579,2.32139516,182.19,182.03,70.32139516]
[1755602569868,2.75205124,182.18,182.12,2.32139516]
[1755602570065,21.53994117,182.42,182.12,2.32139516]
[1755602570066,2.32139516,182.21,182.12,2.32139516]
[1755602570266,3.61547333,182.25,182.13,2.63726921]
[1755602570468,3.61547333,182.25,182.14,2.63726921]
[1755602570767,3.61547333,182.25,182.15,13.52055978]
[1755602570965,3.61547333,182.25,182.16,13.52055978]
[1755602571161,3.61547333,182.25,182.17,13.52055978]
[1755602571460,3.61547333,182.24,182.18,13.52055978]
[1755602571667,2.98,182.23,182.19,10.34055978]
[1755602571967,2.98,182.23,182.2,5.39238267]
[1755602572165,2.98,182.23,182.21,5.39238267]
[1755602572364,2.98,182.23,182.12,3.18]
[1755602572868,2.98,182.23,182.13,5.4886]
[1755602573370,2.98,182.23,182.12,3.18]
[1755602573766,2.98,182.23,182.14,2.91]
[1755602573967,139.78,182.25,182.17,6.52547333]
[1755602575170,139.78,182.25,182.17,2.91]
[1755602576078,369.44,182.29,182.17,6.52547333]
[1755602576079,2.96,182.27,182.17,6.52547333]
[1755602576367,2.96,182.27,182.2,3.61547333]
[1755602576565,2.96,182.27,182.2,6.52547333]
[1755602577465,2.96,182.27,182.09,4.57052115]
[1755602577466,2.96,182.34,182.23,3.61547333]
[1755602577667,2.96,182.34,182.24,2.91]
[1755602578062,2.96,182.34,182.27,2.91]
[1755602578263,136.82,182.35,182.28,2.91]
[1755602578467,2.96,182.34,182.28,2.91]
[1755602578866,136.82,182.35,182.28,2.91]
[1755602579272,2.96,182.34,182.28,2.91]
[1755602579578,2.96,182.34,182.25,3.61547333]
[1755602580177,2.96,182.39,182.28,3.61547333]
[1755602580373,6.57547333,182.39,182.29,2.91]
[1755602580578,2.96,182.38,182.26,2.91]
[1755602581484,3.61547333,182.39,182.26,2.91]
[1755602581485,137.62,182.37,182.26,2.91]
[1755602581676,2.96,182.36,182.26,2.91]
[1755602582284,2.96,182.36,182.3,5.4836]
[1755602582489,369.24,182.41,182.3,5.4836]
[1755602582490,137.5,182.4,182.3,8.3936]
[1755602582680,2.96,182.39,182.3,8.3936]
[1755602582885,3.61547333,182.37,182.27,2.91]
[1755602583185,2.96,182.36,182.27,2.91]
[1755602583383,2.96,182.36,182.23,12.01127333]
[1755602583584,2.96,182.36,182.23,2.91]
[1755602583788,2.96,182.36,182.24,2.23715211]
[1755602583978,2.96,182.36,182.25,2.23715211]
[1755602584185,2.96,182.36,182.23,2.91]
[1755602584491,2.96,182.36,182.25,2.91]
[1755602584882,2.96,182.36,182.25,8.3949]
[1755602585084,2.96,182.36,182.25,2.91]
[1755602585284,2.96,182.36,182.27,2.91]
[1755602585490,2.96,182.36,182.27,8.75832889]
[1755602585690,2.96,182.36,182.27,6.52547333]
[1755602586193,2.96,182.36,182.29,5.4837]
[1755602586381,2.96,182.36,182.24,6.52547333]
[1755602586586,2.96,182.36,182.25,2.23132213]
[1755602586786,2.96,182.36,182.24,6.52547333]
[1755602588086,3.61547333,182.34,182.24,2.91]
[1755602588287,6.57547333,182.33,182.22,2.2315732]
[1755602588488,2.96,182.32,182.21,2.91]
[1755602588693,2.96,182.35,182.25,3.61547333]
[1755602588991,2.96,182.35,182.26,2.91]
[1755602589788,144.15547333,182.39,182.27,2.91]
[1755602590591,144.15547333,182.39,182.29,5.484]
[1755602590787,141.19547333,182.39,182.29,5.484]
[1755602590989,2.96,182.38,182.27,2.91]
[1755602591387,2.96,182.38,182.29,2.91]
[1755602591891,2.96,182.38,182.3,5.4837]
[1755602592189,2.96,182.38,182.29,2.91]
[1755602592990,2.96,182.38,182.32,2.91]
[1755602594492,2.96,182.38,182.28,6.52547333]
[1755602594991,2.96,182.38,182.28,2.91]
[1755602595190,2.96,182.37,182.28,2.91]
[1755602595591,3.61547333,182.35,182.28,2.91]
[1755602595793,2.96,182.34,182.28,2.91]
[1755602596290,2.96,182.34,182.24,12.01097333]
[1755602596796,2.96,182.34,182.24,8.3955]
[1755602596995,2.96,182.34,182.24,2.91]
[1755602597597,2.96,182.34,182.24,8.3955]
[1755602597995,2.96,182.34,182.24,2.91]
[1755602598497,2.96,182.34,182.24,5.17221421]
[1755602598693,3.61547333,182.32,182.18,3.61547333]
[1755602598898,2.96,182.3,182.19,2.2622609]
[1755602599297,2.96,182.28,182.18,5.1722609]
[1755602599689,2.96,182.28,182.18,2.91]
[1755602599889,2.96,182.25,182.15,2.26487188]
[1755602600193,2.96,182.22,182.13,2.91]
[1755602600596,2.96,182.22,182.14,2.91]
[1755602602598,2.96,182.22,182.15,2.27196993]
[1755602602800,2.96,182.22,182.14,2.91]
[1755602602994,2.96,182.22,182.15,2.27178463]
[1755602603200,2.96,182.22,182.14,2.91]
[1755602603400,2.96,182.22,182.15,2.27085207]
[1755602603603,2.96,182.22,182.16,2.27085207]
[1755602603794,2.96,182.22,182.14,8.3985]
[1755602603994,2.96,182.22,182.15,2.27296067]
[1755602604192,2.96,182.22,182.16,2.27296067]
[1755602604393,2.96,182.22,182.14,2.91]
[1755602604600,2.96,182.22,182.15,2.27633885]
[1755602604798,2.96,182.22,182.16,2.27633885]
[1755602605003,2.96,182.22,182.14,2.91]
[1755602605204,2.96,182.22,182.15,2.27670115]
[1755602605404,2.96,182.22,182.16,2.27670115]
[1755602605704,3.1,182.21,182.17,2.27670115]
[1755602605906,3.1,182.21,182.14,8.3983]
[1755602606107,3.1,182.21,182.15,2.28047898]
[1755602606307,3.1,182.21,182.17,3.11]
[1755602606503,137.44,182.23,182.18,5.39047898]
[1755602606706,140.54,182.23,182.19,2.28047898]
[1755602606909,140.54,182.23,182.16,5.4877]
[1755602607110,140.54,182.23,182.17,5.39293241]
[1755602607408,140.54,182.23,182.16,5.4877]
[1755602607409,140.54,182.23,182.18,5.39293241]
[1755602607704,137.44,182.23,182.19,2.28293241]
[1755602607906,3.1,182.27,182.22,3.11]
[1755602608106,3.1,182.25,182.23,2.28510237]
[1755602608308,3.1,182.25,182.19,8.597]
[1755602608514,3.1,182.28,182.2,2.28829238]
[1755602608712,3.1,182.28,182.22,3.11]
[1755602609009,3.1,182.32,182.24,3.11]
[1755602609203,3.1,182.32,182.25,2.28829238]
[1755602609406,3.1,182.32,182.26,2.28829238]
[1755602609704,3.1,182.32,182.27,2.28829238]
[1755602609912,3.1,182.31,182.28,2.28829238]
[1755602610111,3.1,182.3,182.24,3.11]
[1755602610404,3.1,182.32,182.25,2.29132934]
[1755602610716,3.1,182.32,182.26,2.29132934]
[1755602611010,3.1,182.32,182.27,2.18743264]
[1755602611207,3.1,182.32,182.2,3.11]
[1755602611408,3.1,182.32,182.21,2.19076605]
[1755602611610,137.3,182.33,182.22,2.19076605]
[1755602611809,137.3,182.33,182.23,5.30132375]
[1755602612011,3.1,182.32,182.24,2.19132375]
[1755602612206,5.62517197,182.32,182.25,2.19132375]
[1755602612514,3.1,182.31,182.19,3.11]
[1755602612710,1.95,182.29,182.19,3.11]
[1755602617011,5.62517197,182.32,182.19,3.11]
[1755602617216,144.71517197,182.32,182.19,3.11]
[1755602617518,1.95,182.31,182.19,3.11]
[1755602620326,3.61383642,182.28,182.19,3.11]
[1755602621626,3.61383642,182.31,182.19,3.11]
[1755602622219,3.61383642,182.31,182.2,3.11]
[1755602622728,1.95,182.3,182.2,3.11]
[1755602623713,1.95,182.27,182.2,3.11]
[1755602630420,5.56383642,182.31,182.2,3.11]